[Event "GER-ch Youth U10 2020"]
[Site "Willingen"]
[Date "2020.10.28"]
[Round "2.3"]
[White "Uyar, Levin"]
[Black "Neuhoff, Laertes"]
[Result "0-1"]
[ECO "C58"]
[WhiteElo "1471"]
[BlackElo "1655"]
[Annotator "NA RC"]
[PlyCount "66"]
[EventDate "2020.10.27"]
[EventType "swiss"]
[EventRounds "7"]
[EventCountry "GER"]
[SourceTitle "playchess.com"]
[Source "ChessBase"]
[SourceQuality "1"]
[TimeControl "40/4500+30:900+30"]

1. e4 {[%emt 0:00:00]} e5 {[%emt 0:00:00]} 2. Nf3 {[%emt 0:00:00]} Nc6 {[%emt 0:00:00]} 3. Bc4 {[%emt 0:00:05]} Nf6 {[%emt 0:00:13]} 4. Ng5 {[%emt 0:00:32]} d5 {[%emt 0:00:12]} 5. exd5 {[%emt 0:00:15]} Na5 {[%emt 0:00:09]} 6. Bb5+ {[%emt 0:00:27]} c6 {[%emt 0:00:10]} 7. dxc6 {[%emt 0:00:08]} bxc6 {[%emt 0:00:07]} 8. Bd3 {[%emt 0:00:21]} Nd5 {[%emt 0:01:39]} 9. Nf3 {[%emt 0:01:39]} Bd6 {[%emt 0:02:23]} 10. O-O {[%emt 0:01:19]} O-O {[%emt 0:02:05]} 11. Nc3 {[%emt 0:01:43]} f5 {[%emt 0:05:57]} 12. Be2 {[%emt 0:02:57]} e4 {[%emt 0:09:25]} 13. Nd4 {[%emt 0:00:45]} Be5 {[%emt 0:06:30]} 14. Nb3 {[%emt 0:00:44]} Nxb3 {[%emt 0:00:17]} 15. axb3 {[%emt 0:00:19]} Qc7 {[%emt 0:00:44]} 16. h3 {[%emt 0:04:14]} Nxc3 {[%emt 0:05:58]} 17. bxc3 {[%emt 0:05:49]} f4 {[%emt 0:09:08]} 18. f3 {[%emt 0:01:56]} Qb6+ {[%emt 0:06:22]} 19. Kh1 {[%emt 0:00:34]} e3 {[%emt 0:03:15]} 20. Qe1 {[%emt 0:03:43]} Bf5 {[%emt 0:09:54]} 21. dxe3 {[%emt 0:00:49]} Bxc2 {[%emt 0:11:30]} 22. exf4 {[%emt 0:01:08]} Bf6 {[%emt 0:02:40]} 23. b4 {[%emt 0:10:15]} Rfe8 {[%emt 0:01:41]} 24. Qd2 {[%emt 0:01:45]} Bb3 {[%emt 0:00:28]} 25. Bb2 {[%emt 0:03:04]} Rad8 {[%emt 0:00:31]} 26. Qe1 {[%emt 0:05:55]} Kh8 {[%emt 0:02:48]} 27. g3 {[%emt 0:11:22]} Bc4 {[%emt 0:02:22]} 28. Rf2 {[%emt 0:00:40]} Qe3 {[%emt 0:00:56]} 29. Ra3 {[%emt 0:14:42]} Bxe2 {[%emt 0:00:42]} 30. c4 {[%emt 0:01:34]} Bxf3+ {[%emt 0:00:19]} 31. Rxf3 {[%emt 0:00:27]} Qxe1+ {[%emt 0:00:06]} 32. Kg2 {[%emt 0:00:11]} Re2+ {[%emt 0:00:11]} 33. Rf2 {[%emt 0:00:08]} Rxf2# 0-1

[Event "GER-ch Youth U10 2020"]
[Site "Willingen"]
[Date "2020.10.28"]
[Round "2.4"]
[White "Dordevic, Tom"]
[Black "Pimenov, Danil"]
[Result "1-0"]
[ECO "B33"]
[WhiteElo "1535"]
[BlackElo "1235"]
[Annotator "NA RC"]
[PlyCount "105"]
[EventDate "2020.10.27"]
[EventType "swiss"]
[EventRounds "7"]
[EventCountry "GER"]
[SourceTitle "playchess.com"]
[Source "ChessBase"]
[SourceQuality "1"]
[TimeControl "40/4500+30:900+30"]

1. e4 {[%emt 0:00:00]} c5 {[%emt 0:00:00]} 2. Nf3 {[%emt 0:00:00]} Nc6 {[%emt 0:00:00]} 3. d4 {[%emt 0:00:00]} cxd4 {[%emt 0:00:00]} 4. Nxd4 {[%emt 0:00:00]} Nf6 {[%emt 0:00:01]} 5. Nc3 {[%emt 0:00:00]} e5 {[%emt 0:00:22]} 6. Ndb5 {[%emt 0:00:03]} d6 {[%emt 0:00:16]} 7. Bg5 {[%emt 0:00:23]} a6 {[%emt 0:00:07]} 8. Na3 {[%emt 0:00:05]} b5 {[%emt 0:00:05]} 9. Bxf6 {[%emt 0:00:15]} gxf6 {[%emt 0:00:40]} 10. Nd5 {[%emt 0:00:15]} f5 {[%emt 0:00:49]} 11. exf5 {[%emt 0:00:59]} Bxf5 {[%emt 0:00:13]} 12. c3 {[%emt 0:00:35]} Be6 {[%emt 0:01:32]} 13. Nc2 {[%emt 0:04:56]} Rc8 {[%emt 0:01:13]} 14. Nce3 {[%emt 0:01:12]} Bh6 {[%emt 0:01:43]} 15. Qf3 {[%emt 0:09:46]} Bxe3 {[%emt 0:00:57]} 16. Nxe3 {[%emt 0:02:44]} Qb6 {[%emt 0:00:55]} 17. Rd1 {[%emt 0:07:21]} Ke7 {[%emt 0:01:57]} 18. Bd3 {[%emt 0:09:06]} h5 {[%emt 0:02:04]} 19. Bf5 {[%emt 0:02:02]} Rcd8 {[%emt 0:01:55]} 20. Be4 {[%emt 0:04:49]} Na5 {[%emt 0:01:14]} 21. Bd5 {[%emt 0:03:19]} Nc4 {[%emt 0:03:19]} 22. Nf5+ {[%emt 0:05:02]} Bxf5 {[%emt 0:01:41]} 23. Qxf5 {[%emt 0:00:10]} Rdf8 {[%emt 0:01:50]} 24. Qg5+ {[%emt 0:04:22]} Kd7 {[%emt 0:00:31]} 25. b3 {[%emt 0:02:57]} Nb2 {[%emt 0:03:40]} 26. Rd2 {[%emt 0:01:26]} Qc5 {[%emt 0:01:03]} 27. Qf5+ {[%emt 0:00:20]} Ke7 {[%emt 0:00:43]} 28. Qc2 {[%emt 0:00:09]} b4 {[%emt 0:00:53]} 29. c4 {[%emt 0:00:22]} Nxc4 {[%emt 0:01:33]} 30. Qxc4 {[%emt 0:02:45]} Qxc4 {[%emt 0:00:46]} 31. Bxc4 {[%emt 0:00:12]} a5 {[%emt 0:00:18]} 32. Rd5 {[%emt 0:00:22]} Ra8 {[%emt 0:00:20]} 33. Ke2 {[%emt 0:00:08]} f5 {[%emt 0:00:21]} 34. Rhd1 {[%emt 0:00:10]} Rhd8 {[%emt 0:00:12]} 35. Rb5 {[%emt 0:00:23]} Rdb8 36. Rdd5 {[%emt 0:00:38]} Rxb5 {[%emt 0:01:14]} 37. Rxb5 {[%emt 0:00:03]} Ra7 {[%emt 0:00:32]} 38. Rb8 {[%emt 0:00:33]} Kf6 {[%emt 0:00:33]} 39. Rh8 {[%emt 0:00:42]} Rc7 {[%emt 0:00:23]} 40. Rh6+ {[%emt 0:00:50]} Ke7 {[%emt 0:01:14]} 41. Rxh5 {[%emt 0:15:08]} Kf6 {[%emt 0:15:47]} 42. Rh6+ {[%emt 0:00:15]} Kg5 {[%emt 0:00:07]} 43. Rxd6 {[%emt 0:00:05]} Rh7 {[%emt 0:00:26]} 44. h3 {[%emt 0:00:12]} Kf4 {[%emt 0:00:23]} 45. Ra6 {[%emt 0:00:39]} Rg7 {[%emt 0:00:19]} 46. g3+ {[%emt 0:00:08]} Ke4 {[%emt 0:00:18]} 47. Rxa5 {[%emt 0:00:38]} f4 {[%emt 0:00:20]} 48. f3+ {[%emt 0:00:16]} Kd4 {[%emt 0:00:14]} 49. g4 {[%emt 0:01:26]} Rh7 {[%emt 0:00:09]} 50. Kd2 {[%emt 0:00:23]} Rd7 {[%emt 0:00:39]} 51. Rd5+ {[%emt 0:01:10]} Rxd5 {[%emt 0:00:09]} 52. Bxd5 {[%emt 0:00:01]} Kxd5 {[%emt 0:00:09]} 53. Kd3 {[%emt 0:00:04]} 1-0

[Event "GER-ch Youth U10 2020"]
[Site "Willingen"]
[Date "2020.10.28"]
[Round "2.5"]
[White "Blumenthal Tuset, Sebastian"]
[Black "Herrmann, Jakob"]
[Result "0-1"]
[ECO "B13"]
[WhiteElo "1453"]
[BlackElo "1504"]
[Annotator "NA RC"]
[PlyCount "88"]
[EventDate "2020.10.27"]
[EventType "swiss"]
[EventRounds "7"]
[EventCountry "GER"]
[SourceTitle "playchess.com"]
[Source "ChessBase"]
[SourceQuality "1"]
[TimeControl "40/4500+30:900+30"]

1. e4 {[%emt 0:00:00]} c6 {[%emt 0:00:00]} 2. d4 {[%emt 0:00:00]} d5 {[%emt 0:00:00]} 3. exd5 {[%emt 0:00:14]} cxd5 {[%emt 0:00:14]} 4. Nf3 {[%emt 0:00:15]} Nc6 {[%emt 0:00:47]} 5. Be2 {[%emt 0:00:33]} Bf5 {[%emt 0:00:53]} 6. c3 {[%emt 0:00:36]} e6 {[%emt 0:00:17]} 7. O-O {[%emt 0:01:27]} Nf6 {[%emt 0:01:28]} 8. Bf4 {[%emt 0:01:14]} Be7 {[%emt 0:00:59]} 9. h3 {[%emt 0:02:04]} O-O {[%emt 0:00:58]} 10. Nbd2 {[%emt 0:00:28]} Qd7 {[%emt 0:01:48]} 11. Ne5 {[%emt 0:04:18]} Nxe5 {[%emt 0:04:23]} 12. dxe5 {[%emt 0:00:57]} Ne4 {[%emt 0:01:42]} 13. Nxe4 {[%emt 0:01:38]} Bxe4 {[%emt 0:00:25]} 14. c4 {[%emt 0:04:57]} Rfd8 {[%emt 0:10:23]} 15. Qd4 {[%emt 0:04:04]} Rac8 {[%emt 0:08:28]} 16. b3 {[%emt 0:03:12]} Bc5 {[%emt 0:02:50]} 17. Qd2 {[%emt 0:00:53]} h6 {[%emt 0:16:50]} 18. Rad1 {[%emt 0:01:33]} Qe7 {[%emt 0:01:46]} 19. Bg3 {[%emt 0:07:35]} dxc4 20. Qf4 {[%emt 0:01:34]} Bd3 {[%emt 0:03:09]} 21. Bxd3 {[%emt 0:01:23]} cxd3 {[%emt 0:00:25]} 22. Qf3 {[%emt 0:02:06]} d2 {[%emt 0:00:59]} 23. Bf4 {[%emt 0:01:01]} Bb4 {[%emt 0:01:48]} 24. Qg4 {[%emt 0:05:01]} Kh8 {[%emt 0:01:03]} 25. Qh5 {[%emt 0:01:02]} Rd5 {[%emt 0:03:35]} 26. h4 {[%emt 0:01:13]} Bc3 {[%emt 0:01:23]} 27. Bg5 {[%emt 0:01:33]} Rxe5 {[%emt 0:01:06]} 28. Qxh6+ {[%emt 0:01:06]} gxh6 {[%emt 0:00:05]} 29. Bxe7 {[%emt 0:00:14]} Re1 {[%emt 0:00:23]} 30. Kh2 {[%emt 0:03:48]} Be5+ {[%emt 0:00:55]} 31. f4 {[%emt 0:00:48]} Bxf4+ {[%emt 0:00:24]} 32. g3 {[%emt 0:00:55]} Rc1 {[%emt 0:00:18]} 33. Bb4 {[%emt 0:01:04]} Rcxd1 {[%emt 0:00:18]} 34. Bc3+ {[%emt 0:01:13]} Kg8 {[%emt 0:00:54]} 35. Bxd2 {[%emt 0:02:58]} Bxd2 {[%emt 0:00:11]} 36. Rxe1 {[%emt 0:00:10]} Bxe1 {[%emt 0:00:19]} 37. Kg2 {[%emt 0:00:08]} Rd2+ {[%emt 0:00:09]} 38. Kf1 {[%emt 0:00:09]} Bxg3 {[%emt 0:00:05]} 39. Kg1 {[%emt 0:00:11]} e5 {[%emt 0:00:05]} 40. h5 {[%emt 0:00:10]} e4 {[%emt 0:00:03]} 41. a4 {[%emt 0:15:06]} e3 {[%emt 0:15:04]} 42. b4 {[%emt 0:00:09]} Rh2 {[%emt 0:00:05]} 43. b5 {[%emt 0:00:15]} e2 {[%emt 0:00:03]} 44. a5 {[%emt 0:00:08]} e1=R# 0-1

[Event "GER-ch Youth U10 2020"]
[Site "Willingen"]
[Date "2020.10.28"]
[Round "2.7"]
[White "Buchinger, Alexis"]
[Black "Radeke, Timothy"]
[Result "1-0"]
[ECO "B07"]
[WhiteElo "1496"]
[BlackElo "1143"]
[Annotator "NA RC"]
[PlyCount "39"]
[EventDate "2020.10.27"]
[EventType "swiss"]
[EventRounds "7"]
[EventCountry "GER"]
[SourceTitle "playchess.com"]
[Source "ChessBase"]
[SourceQuality "1"]
[TimeControl "40/4500+30:900+30"]

1. e4 {[%emt 0:00:00]} d6 {[%emt 0:00:00]} 2. d4 {[%emt 0:00:27]} Nf6 {[%emt 0:00:00]} 3. Nc3 {[%emt 0:00:36]} Nbd7 {[%emt 0:00:00]} 4. Nf3 {[%emt 0:02:02]} e5 {[%emt 0:00:10]} 5. Bg5 {[%emt 0:01:16]} h6 {[%emt 0:00:38]} 6. Bxf6 {[%emt 0:01:51]} Qxf6 {[%emt 0:01:55]} 7. Be2 {[%emt 0:02:35]} Be7 {[%emt 0:00:11]} 8. Nd5 {[%emt 0:00:45]} Qg6 {[%emt 0:01:07]} 9. Nxc7+ {[%emt 0:00:44]} Kd8 {[%emt 0:00:16]} 10. Nxa8 {[%emt 0:00:17]} b6 {[%emt 0:00:11]} 11. dxe5 {[%emt 0:00:32]} Qxe4 {[%emt 0:01:29]} 12. exd6 {[%emt 0:00:35]} Bf6 {[%emt 0:00:25]} 13. Nc7 {[%emt 0:02:17]} Bxb2 {[%emt 0:00:29]} 14. O-O {[%emt 0:00:36]} Bxa1 {[%emt 0:02:43]} 15. Bd3 {[%emt 0:00:20]} Qg4 {[%emt 0:05:32]} 16. Qxa1 {[%emt 0:00:29]} Bb7 {[%emt 0:01:34]} 17. Be2 {[%emt 0:01:43]} f6 {[%emt 0:01:25]} 18. h3 {[%emt 0:00:51]} Qg6 {[%emt 0:00:43]} 19. Nh4 {[%emt 0:01:14]} Qxc2 {[%emt 0:00:39]} 20. Ne6+ 1-0

[Event "GER-ch Youth U10 2020"]
[Site "Willingen"]
[Date "2020.10.28"]
[Round "2.9"]
[White "Xue, Luka"]
[Black "Goldkuhle, Collin"]
[Result "1-0"]
[ECO "A49"]
[WhiteElo "1473"]
[BlackElo "1418"]
[Annotator "NA RC"]
[PlyCount "113"]
[EventDate "2020.10.27"]
[EventType "swiss"]
[EventRounds "7"]
[EventCountry "GER"]
[SourceTitle "playchess.com"]
[Source "ChessBase"]
[SourceQuality "1"]
[TimeControl "40/4500+30:900+30"]

1. d4 {[%emt 0:00:00]} Nf6 {[%emt 0:00:00]} 2. Nf3 g6 3. g3 {[%emt 0:01:25]} Bg7 {[%emt 0:00:19]} 4. Bg2 {[%emt 0:00:15]} d6 {[%emt 0:00:21]} 5. O-O {[%emt 0:00:11]} O-O {[%emt 0:00:44]} 6. b3 {[%emt 0:00:38]} Nbd7 {[%emt 0:00:28]} 7. Bb2 {[%emt 0:00:21]} Re8 {[%emt 0:00:28]} 8. c4 {[%emt 0:02:20]} Rb8 {[%emt 0:01:37]} 9. Nc3 {[%emt 0:00:59]} b6 {[%emt 0:00:44]} 10. Qd2 {[%emt 0:01:41]} Bb7 {[%emt 0:00:18]} 11. Rfe1 {[%emt 0:00:34]} c5 {[%emt 0:02:04]} 12. d5 {[%emt 0:04:21]} a6 {[%emt 0:09:12]} 13. e4 {[%emt 0:02:59]} Bc8 {[%emt 0:04:01]} 14. a4 {[%emt 0:02:46]} a5 {[%emt 0:01:10]} 15. Nb5 {[%emt 0:04:39]} Ba6 {[%emt 0:05:26]} 16. Bh3 {[%emt 0:03:11]} Bxb5 {[%emt 0:05:15]} 17. axb5 {[%emt 0:01:26]} h6 {[%emt 0:01:54]} 18. e5 dxe5 {[%emt 0:04:27]} 19. Nxe5 {[%emt 0:02:40]} Nxe5 {[%emt 0:01:18]} 20. Bxe5 {[%emt 0:00:32]} Nd7 {[%emt 0:01:27]} 21. Bxg7 {[%emt 0:05:21]} Kxg7 {[%emt 0:00:55]} 22. Qc3+ {[%emt 0:01:21]} Kg8 {[%emt 0:02:27]} 23. Rad1 {[%emt 0:02:35]} Nf6 {[%emt 0:00:48]} 24. Re3 {[%emt 0:03:39]} e6 {[%emt 0:01:34]} 25. Qe1 {[%emt 0:03:48]} exd5 {[%emt 0:02:43]} 26. cxd5 {[%emt 0:03:21]} Kh7 {[%emt 0:03:16]} 27. d6 {[%emt 0:03:03]} Rxe3 28. Qxe3 {[%emt 0:00:11]} Qe8 {[%emt 0:06:04]} 29. Qf3 {[%emt 0:05:07]} Qe5 {[%emt 0:05:04]} 30. Kf1 {[%emt 0:06:01]} Kg7 {[%emt 0:00:18]} 31. d7 {[%emt 0:02:03]} Rd8 {[%emt 0:00:21]} 32. Qc6 {[%emt 0:02:12]} Qb8 {[%emt 0:01:15]} 33. Qc8 {[%emt 0:01:46]} Nxd7 {[%emt 0:01:09]} 34. Qxb8 {[%emt 0:00:30]} Rxb8 {[%emt 0:00:49]} 35. Rxd7 {[%emt 0:00:08]} g5 {[%emt 0:00:31]} 36. Bg2 {[%emt 0:01:12]} a4 {[%emt 0:01:36]} 37. bxa4 {[%emt 0:00:18]} Rc8 {[%emt 0:00:15]} 38. Bc6 {[%emt 0:01:25]} Kf6 {[%emt 0:00:20]} 39. Ke2 {[%emt 0:01:09]} Re8+ {[%emt 0:00:28]} 40. Kd2 {[%emt 0:00:13]} Re6 {[%emt 0:03:06]} 41. Bd5 {[%emt 0:16:35]} Re5 {[%emt 0:16:20]} 42. Rxf7+ {[%emt 0:00:31]} Kg6 {[%emt 0:00:18]} 43. Bc4 {[%emt 0:00:42]} Re4 {[%emt 0:00:21]} 44. Bd3 {[%emt 0:00:01]} Kxf7 {[%emt 0:00:14]} 45. Bxe4 {[%emt 0:00:06]} Ke6 {[%emt 0:00:02]} 46. f4 {[%emt 0:00:35]} gxf4 {[%emt 0:00:34]} 47. gxf4 {[%emt 0:00:08]} Kf6 {[%emt 0:00:41]} 48. a5 {[%emt 0:00:13]} c4 {[%emt 0:00:27]} 49. a6 {[%emt 0:00:10]} c3+ {[%emt 0:00:06]} 50. Kxc3 {[%emt 0:00:07]} h5 {[%emt 0:00:04]} 51. a7 {[%emt 0:00:15]} h4 {[%emt 0:00:07]} 52. a8=Q {[%emt 0:00:09]} Ke6 {[%emt 0:00:12]} 53. Qb7 {[%emt 0:00:22]} h3 {[%emt 0:00:11]} 54. Bd5+ {[%emt 0:00:26]} Kf5 {[%emt 0:00:10]} 55. Qf7+ {[%emt 0:00:12]} Kg4 {[%emt 0:00:09]} 56. Qf6 {[%emt 0:00:43]} Kh5 {[%emt 0:00:23]} 57. Bf3# 1-0

[Event "GER-ch Youth U10 2020"]
[Site "Willingen"]
[Date "2020.10.28"]
[Round "2.10"]
[White "Thuemler, Floris"]
[Black "Burkart, Lloyd Shang"]
[Result "0-1"]
[ECO "B40"]
[WhiteElo "1295"]
[BlackElo "1508"]
[Annotator "NA RC"]
[PlyCount "114"]
[EventDate "2020.10.27"]
[EventType "swiss"]
[EventRounds "7"]
[EventCountry "GER"]
[SourceTitle "playchess.com"]
[Source "ChessBase"]
[SourceQuality "1"]
[TimeControl "40/4500+30:900+30"]

1. e4 {[%emt 0:00:00]} c5 {[%emt 0:00:00]} 2. Nf3 {[%emt 0:00:00]} e6 {[%emt 0:00:33]} 3. c4 {[%emt 0:01:07]} Nc6 {[%emt 0:01:21]} 4. Be2 {[%emt 0:01:22]} Nd4 {[%emt 0:02:16]} 5. O-O {[%emt 0:02:38]} d6 {[%emt 0:01:33]} 6. Nc3 {[%emt 0:02:43]} Nf6 {[%emt 0:03:01]} 7. a3 {[%emt 0:04:00]} Be7 {[%emt 0:02:21]} 8. b4 {[%emt 0:00:50]} b6 {[%emt 0:02:28]} 9. e5 {[%emt 0:02:21]} Nxe2+ {[%emt 0:07:03]} 10. Qxe2 {[%emt 0:01:57]} dxe5 {[%emt 0:00:36]} 11. Nxe5 {[%emt 0:00:28]} Bb7 {[%emt 0:00:59]} 12. b5 {[%emt 0:02:08]} Qc7 {[%emt 0:04:21]} 13. Rd1 {[%emt 0:02:34]} Bd6 {[%emt 0:03:02]} 14. f4 {[%emt 0:01:51]} O-O {[%emt 0:10:17]} 15. Bb2 {[%emt 0:03:55]} Rfd8 {[%emt 0:04:44]} 16. Kh1 {[%emt 0:04:39]} Bxe5 {[%emt 0:11:22]} 17. fxe5 {[%emt 0:01:28]} Nd7 {[%emt 0:00:57]} 18. Nb1 {[%emt 0:00:56]} Nf8 {[%emt 0:01:12]} 19. d3 {[%emt 0:02:08]} Ng6 {[%emt 0:00:39]} 20. Qf2 {[%emt 0:05:03]} Nxe5 {[%emt 0:03:21]} 21. Qg3 {[%emt 0:01:21]} f6 {[%emt 0:00:03]} 22. Re1 {[%emt 0:00:54]} Rd7 {[%emt 0:05:17]} 23. Bxe5 {[%emt 0:00:54]} fxe5 {[%emt 0:00:06]} 24. Qxe5 {[%emt 0:01:41]} Qxe5 {[%emt 0:00:07]} 25. Rxe5 {[%emt 0:00:16]} Rxd3 {[%emt 0:00:17]} 26. Kg1 {[%emt 0:02:03]} Rd1+ {[%emt 0:00:48]} 27. Kf2 {[%emt 0:00:21]} Rf8+ {[%emt 0:00:04]} 28. Kg3 {[%emt 0:02:34]} Rff1 {[%emt 0:00:39]} 29. Rxe6 {[%emt 0:00:59]} Rxb1 {[%emt 0:00:07]} 30. Rxb1 {[%emt 0:00:27]} Rxb1 {[%emt 0:00:10]} 31. Re7 {[%emt 0:00:18]} Rb3+ {[%emt 0:01:07]} 32. Kg4 {[%emt 0:00:32]} Bxg2 {[%emt 0:00:14]} 33. Rxa7 {[%emt 0:00:11]} h6 {[%emt 0:03:04]} 34. Kf5 {[%emt 0:03:49]} Bf1 {[%emt 0:12:46]} 35. Rb7 {[%emt 0:02:42]} Bxc4 {[%emt 0:01:00]} 36. Rxb6 {[%emt 0:02:42]} Bxb5 {[%emt 0:00:16]} 37. Ke5 {[%emt 0:01:24]} Ba4 {[%emt 0:00:29]} 38. Ra6 {[%emt 0:01:24]} Rxa3 {[%emt 0:00:28]} 39. Kd6 {[%emt 0:00:38]} c4 {[%emt 0:00:30]} 40. Kc5 {[%emt 0:00:15]} Ra2 {[%emt 0:02:34]} 41. Ra8+ {[%emt 0:15:46]} Kh7 {[%emt 0:15:07]} 42. Ra7 {[%emt 0:00:50]} Bb3 {[%emt 0:00:14]} 43. Rb7 {[%emt 0:00:52]} Rxh2 {[%emt 0:00:12]} 44. Kd4 {[%emt 0:00:18]} Kg6 {[%emt 0:03:35]} 45. Rc7 {[%emt 0:00:36]} h5 {[%emt 0:00:18]} 46. Rc6+ {[%emt 0:00:19]} Kg5 {[%emt 0:00:51]} 47. Rc7 {[%emt 0:00:18]} g6 {[%emt 0:00:22]} 48. Rc6 {[%emt 0:00:33]} Rg2 {[%emt 0:00:00]} 49. Ra6 {[%emt 0:00:00]} Kh4 {[%emt 0:00:00]} 50. Ra1 {[%emt 0:00:00]} g5 {[%emt 0:00:00]} 51. Rh1+ {[%emt 0:00:00]} Kg4 {[%emt 0:00:00]} 52. Re1 {[%emt 0:00:00]} h4 {[%emt 0:00:00]} 53. Re4+ {[%emt 0:00:00]} Kh3 {[%emt 0:00:00]} 54. Re3+ {[%emt 0:00:00]} Kh2 {[%emt 0:00:00]} 55. Rc3 {[%emt 0:00:00]} g4 {[%emt 0:00:00]} 56. Re3 {[%emt 0:00:00]} g3 {[%emt 0:00:00]} 57. Re1 {[%emt 0:00:00]} Rf2 0-1

[Event "GER-ch Youth U10 2020"]
[Site "Willingen"]
[Date "2020.10.28"]
[Round "2.11"]
[White "Mandalka, Justus"]
[Black "Aniol, Nico"]
[Result "1-0"]
[ECO "B33"]
[WhiteElo "1437"]
[BlackElo "1417"]
[Annotator "NA RC"]
[PlyCount "149"]
[EventDate "2020.10.27"]
[EventType "swiss"]
[EventRounds "7"]
[EventCountry "GER"]
[SourceTitle "playchess.com"]
[Source "ChessBase"]
[SourceQuality "1"]
[TimeControl "40/4500+30:900+30"]

1. e4 {[%emt 0:00:00]} c5 {[%emt 0:00:00]} 2. Nf3 {[%emt 0:00:00]} Nc6 {[%emt 0:00:43]} 3. d4 {[%emt 0:00:00]} cxd4 {[%emt 0:00:56]} 4. Nxd4 {[%emt 0:00:00]} Nf6 {[%emt 0:01:21]} 5. Nxc6 {[%emt 0:01:29]} bxc6 {[%emt 0:01:21]} 6. Nc3 {[%emt 0:00:55]} e5 {[%emt 0:02:10]} 7. Bc4 {[%emt 0:00:55]} Bb4 {[%emt 0:01:59]} 8. Bg5 {[%emt 0:00:46]} h6 {[%emt 0:01:32]} 9. Bh4 {[%emt 0:02:12]} Bb7 {[%emt 0:01:50]} 10. O-O {[%emt 0:01:24]} Bxc3 {[%emt 0:03:00]} 11. bxc3 {[%emt 0:00:06]} d5 {[%emt 0:00:12]} 12. exd5 {[%emt 0:00:06]} cxd5 {[%emt 0:00:36]} 13. Bb5+ {[%emt 0:00:06]} Kf8 {[%emt 0:01:17]} 14. Re1 {[%emt 0:03:42]} g5 {[%emt 0:02:16]} 15. Bg3 {[%emt 0:00:20]} e4 {[%emt 0:01:06]} 16. c4 {[%emt 0:01:08]} a6 {[%emt 0:03:13]} 17. Ba4 {[%emt 0:04:23]} Qa5 {[%emt 0:01:15]} 18. Be5 {[%emt 0:00:26]} Qd8 {[%emt 0:07:46]} 19. Qd4 {[%emt 0:01:46]} Kg7 {[%emt 0:00:33]} 20. cxd5 {[%emt 0:00:37]} Kg6 {[%emt 0:01:51]} 21. c4 {[%emt 0:01:06]} Rg8 {[%emt 0:01:07]} 22. Bxf6 {[%emt 0:01:04]} Qxf6 {[%emt 0:00:09]} 23. Qxf6+ {[%emt 0:00:04]} Kxf6 {[%emt 0:00:11]} 24. Rxe4 {[%emt 0:00:13]} Rab8 {[%emt 0:00:33]} 25. Rae1 {[%emt 0:00:47]} Bc8 {[%emt 0:01:24]} 26. Bb3 {[%emt 0:00:40]} Bf5 {[%emt 0:01:18]} 27. Re7 {[%emt 0:00:40]} a5 {[%emt 0:01:12]} 28. h3 {[%emt 0:01:31]} Ra8 {[%emt 0:00:30]} 29. Ba4 {[%emt 0:00:33]} Bb1 {[%emt 0:02:06]} 30. a3 {[%emt 0:02:01]} Ba2 {[%emt 0:01:30]} 31. Rc7 {[%emt 0:01:11]} Rgf8 {[%emt 0:00:57]} 32. Bb5 {[%emt 0:00:48]} Rac8 {[%emt 0:01:37]} 33. Ree7 {[%emt 0:01:49]} Rcd8 {[%emt 0:02:31]} 34. Rcd7 {[%emt 0:03:26]} Rc8 {[%emt 0:01:50]} 35. Rc7 {[%emt 0:01:23]} Rcd8 {[%emt 0:00:05]} 36. Red7 {[%emt 0:00:07]} Ra8 {[%emt 0:01:16]} 37. a4 {[%emt 0:01:22]} Bb1 {[%emt 0:02:37]} 38. g4 {[%emt 0:00:06]} Bd3 {[%emt 0:00:48]} 39. f3 {[%emt 0:00:24]} Kg6 {[%emt 0:00:53]} 40. Kf2 {[%emt 0:00:37]} Rae8 {[%emt 0:01:55]} 41. Rd6+ {[%emt 0:15:58]} Kg7 {[%emt 0:15:08]} 42. Bxe8 {[%emt 0:01:01]} Rxe8 {[%emt 0:00:02]} 43. Rdd7 {[%emt 0:00:22]} Re2+ {[%emt 0:00:37]} 44. Kg3 {[%emt 0:00:06]} Bg6 {[%emt 0:00:08]} 45. h4 {[%emt 0:00:56]} gxh4+ {[%emt 0:01:11]} 46. Kxh4 {[%emt 0:00:06]} h5 {[%emt 0:00:45]} 47. gxh5 {[%emt 0:01:05]} Rh2+ {[%emt 0:00:09]} 48. Kg3 {[%emt 0:00:06]} Rxh5 {[%emt 0:00:17]} 49. Ra7 {[%emt 0:00:14]} Rg5+ {[%emt 0:00:17]} 50. Kf2 {[%emt 0:03:51]} Rf5 {[%emt 0:00:45]} 51. Re7 {[%emt 0:00:38]} Rf4 {[%emt 0:00:29]} 52. d6 {[%emt 0:01:06]} Rd4 {[%emt 0:00:41]} 53. d7 {[%emt 0:00:09]} Bf5 {[%emt 0:00:31]} 54. Rxf7+ {[%emt 0:00:11]} Kg6 {[%emt 0:00:22]} 55. Rxf5 {[%emt 0:01:09]} Kxf5 {[%emt 0:00:11]} 56. Rxa5+ {[%emt 0:00:06]} Ke6 {[%emt 0:00:12]} 57. Rd5 {[%emt 0:00:07]} Rxd5 {[%emt 0:00:18]} 58. cxd5+ {[%emt 0:00:06]} Kxd7 {[%emt 0:00:07]} 59. Ke3 {[%emt 0:00:05]} Kd6 {[%emt 0:00:06]} 60. Kd4 {[%emt 0:00:10]} Kd7 {[%emt 0:00:08]} 61. Kc5 {[%emt 0:01:25]} Kc7 {[%emt 0:00:28]} 62. d6+ {[%emt 0:00:30]} Kd8 {[%emt 0:00:11]} 63. Kc6 {[%emt 0:00:06]} Kc8 {[%emt 0:00:13]} 64. d7+ {[%emt 0:00:05]} Kd8 {[%emt 0:00:05]} 65. a5 {[%emt 0:00:04]} Ke7 {[%emt 0:00:04]} 66. Kc7 {[%emt 0:00:04]} Ke6 {[%emt 0:00:04]} 67. d8=Q {[%emt 0:00:08]} Ke5 {[%emt 0:00:09]} 68. f4+ {[%emt 0:00:06]} Ke4 {[%emt 0:00:08]} 69. f5 {[%emt 0:00:10]} Kxf5 {[%emt 0:00:05]} 70. Qe7 {[%emt 0:00:06]} Kf4 {[%emt 0:00:07]} 71. Qe6 {[%emt 0:00:05]} Kf3 {[%emt 0:00:05]} 72. Qe5 {[%emt 0:00:04]} Kf2 {[%emt 0:00:04]} 73. Qe4 {[%emt 0:00:07]} Kg3 {[%emt 0:00:04]} 74. a6 {[%emt 0:00:06]} Kh2 {[%emt 0:00:05]} 75. Qg4 {[%emt 0:00:07]} 1-0